fUSD/lending_fUSD_20251025
["ID","MTS","AMOUNT","RATE_DAILY","PERIOD"]
[392339619,1761365431778,-1270.0,0.00034883,2]
[392339620,1761365431788,-818.0,0.00034883,2]
[392339621,1761365431797,-333.42952595,0.00034887,7]
[392339622,1761365431807,-3488.0,0.00034888,2]
[392339623,1761365431816,-6458.0,0.00034888,2]
[392339624,1761365431825,-557.29,0.00034888,2]
[392339625,1761365431834,-150.0,0.00035088,7]
[392339626,1761365431844,-162.17891854,0.00035088,7]
[392339627,1761365431854,-161.05453191,0.00035088,7]
[392339630,1761365431863,-165.64410874,0.00035088,7]
[392339633,1761365431872,-150.0,0.00035088,7]
[392339635,1761365431881,-177.70161576,0.00035281,2]
[392339638,1761365431890,-1234.59299744,0.00035281,2]
[392339639,1761365431900,-1253.9422055,0.00035287,3]
[392339640,1761365431909,-4249.72,0.00035381,2]
[392339642,1761365431919,-302.29,0.00035399,2]
[392339644,1761365431928,-1000.0,0.00035448,2]
[392339646,1761365431937,-250.0,0.00035453,2]
[392339647,1761365431947,-10628.88264667,0.00035489,2]
[392339648,1761365431957,-1253.9422055,0.00035596,3]
[392339649,1761365431967,-26158.34,0.00035696,2]
[392339650,1761365431976,-264.665,0.00035721,43]
[392339651,1761365431985,-168.57,0.00035721,120]
[392339652,1761365431995,-1000.0,0.00035722,2]
[392339653,1761365432005,-1020.39,0.00035763,2]
[392339654,1761365432015,-214.85,0.00035854,2]
[392339655,1761365432023,-151.0,0.00035878,2]
[392339656,1761365432033,-151.0,0.00035878,2]
[392339657,1761365432042,-151.0,0.00035878,2]
[392339658,1761365432052,-186.64154011,0.00035878,2]
[392339659,1761365432062,-151.0,0.00035878,2]
[392339660,1761365432071,-151.0,0.00035878,2]
[392339661,1761365432081,-151.0,0.00035878,2]
[392339662,1761365432090,-151.0,0.00035878,2]
[392339663,1761365432099,-151.0,0.00035878,2]
[392339664,1761365432109,-151.0,0.00035878,2]
[392339665,1761365432118,-151.0,0.00035878,2]
[392339666,1761365432128,-151.0,0.00035878,2]
[392339667,1761365432137,-151.0,0.00035878,2]
[392339668,1761365432147,-151.0,0.00035878,2]
[392339669,1761365432156,-151.0,0.00035878,2]
[392339670,1761365432166,-151.0,0.00035878,2]
[392339671,1761365432175,-151.0,0.00035878,2]
[392339672,1761365432184,-151.0,0.00035878,2]
[392339673,1761365432194,-151.0,0.00035878,2]
[392339674,1761365432202,-151.0,0.00035878,2]
[392339675,1761365432211,-151.0,0.00035878,2]
[392339676,1761365432221,-151.0,0.00035878,2]
[392339677,1761365432230,-151.0,0.00035878,2]
[392339678,1761365432240,-2000.0,0.000359,2]
[392339679,1761365432251,-416.79,0.00035924,120]
[392339680,1761365432260,-505.80889573,0.00035925,30]
[392339681,1761365432269,-1000.0,0.00035996,2]
[392339682,1761365432279,-2247.72,0.00036019,2]
[392339683,1761365432288,-476.4830027,0.00036035,2]
[392339684,1761365432297,-1093.0,0.00036035,2]
[392339685,1761365432307,-168.0,0.00036124,2]
[392339686,1761365432316,-168.0,0.00036158,2]
[392339687,1761365432326,-500.0,0.00036183,30]
[392339688,1761365432335,-423.81,0.00036213,2]
[392339689,1761365432344,-500.0,0.00036222,30]
[392339690,1761365432354,-11541.34,0.0003626,2]
[392339691,1761365432364,-1000.0,0.0003627,2]
[392339692,1761365432374,-475.73,0.0003638,2]
[392339693,1761365432383,-696.68,0.0003638,2]
[392339694,1761365432393,-522.8356042,0.00036481,30]
[392339695,1761365432403,-1000.0,0.00036544,2]
[392339696,1761365432412,-150.0,0.00036625,7]
[392339697,1761365432422,-994.0,0.00036776,7]
[392339698,1761365432432,-839.40255346,0.00036813,2]
[392339699,1761365432441,-1000.0,0.00036818,2]
[392339700,1761365432451,-150.0,0.00036859,2]
[392339701,1761365432460,-150.0,0.00036859,2]
[392339702,1761365432471,-150.0,0.00036859,2]
[392339703,1761365432482,-150.0,0.00036859,2]
[392339704,1761365432491,-819.0,0.00036859,2]
[392339705,1761365432501,-1000.0,0.00036873,120]
[392339706,1761365432511,-277.0,0.00036955,2]
[392339707,1761365432520,-168.0,0.00036959,2]
[392339708,1761365432529,-839.40255346,0.0003701,2]
[392339709,1761365432538,-1000.0,0.00037092,2]
[392339710,1761365432548,-277.0,0.00037192,7]
[392339711,1761365432557,-500.0,0.00037199,30]
[392339712,1761365432566,-1373.0,0.00037224,2]
[392339713,1761365432576,-386.00079081,0.0003726,7]
[392339714,1761365432587,-1000.0,0.0003726,7]
[392339715,1761365432597,-500.0,0.0003726,7]
[392339716,1761365432607,-839.40255346,0.00037288,2]
[392339717,1761365432616,-475.73,0.00037339,2]
[392339718,1761365432625,-696.68,0.00037339,2]
[392339719,1761365432635,-696.68,0.00037339,2]
[392339720,1761365432644,-475.73,0.00037339,2]
[392339721,1761365432653,-696.68,0.00037339,2]
[392339722,1761365432663,-475.73,0.00037339,2]
[392339723,1761365432673,-475.73,0.00037339,2]
[392339724,1761365432682,-696.68,0.00037339,2]
[392339725,1761365432692,-475.73,0.00037339,2]
[392339726,1761365432703,-696.68,0.00037339,2]
[392339727,1761365432712,-475.73,0.00037339,2]
[392339728,1761365432722,-696.68,0.00037339,2]
[392339729,1761365432732,-475.73,0.00037339,2]
[392339730,1761365432742,-696.68,0.00037339,2]
[392339731,1761365432751,-696.68,0.00037339,2]
[392339732,1761365432761,-475.73,0.00037339,2]
[392339733,1761365432770,-475.73,0.00037339,2]
[392339734,1761365432781,-694.68,0.00037339,2]
[392339735,1761365432791,-475.73,0.00037339,2]
[392339736,1761365432800,-1000.0,0.00037366,2]
[392339737,1761365432810,-176.3,0.00037476,2]
[392339738,1761365432819,-2401.64,0.00037476,2]
[392339739,1761365432829,-828.7,0.00037476,2]
[392339740,1761365432839,-150.54,0.00037476,2]
[392339741,1761365432848,-1236.0,0.00037515,7]
[392339742,1761365432857,-1236.0,0.00037515,7]
[392339743,1761365432867,-152.0,0.00037515,7]
[392339744,1761365432876,-1236.0,0.00037515,7]
[392339745,1761365432885,-153.54960491,0.00037515,7]
[392339746,1761365432895,-1236.0,0.00037515,7]
[392339747,1761365432904,-1256.6127127,0.00037515,7]
[392339748,1761365432913,-1095.2,0.00037534,2]
[392339749,1761365432922,-7059.87958017,0.00037581,2]
[392339750,1761365432931,-2500.0,0.00037589,2]
[392339751,1761365432945,-500.0,0.0003761,2]
[392339752,1761365432955,-1000.0,0.0003764,2]
[392339753,1761365432965,-500.0,0.00037665,2]
[392339754,1761365432975,-300.0,0.00037681,7]
[392339755,1761365432984,-5344.33314954,0.00037688,2]
[392339756,1761365432994,-82426.64527578,0.00037689,2]
[392339757,1761365433004,-500.0,0.00037692,30]
[392339758,1761365433012,-563.32496364,0.0003772,2]
[392339759,1761365433022,-839.40255346,0.00037743,2]
[392339760,1761365433031,-516.95548084,0.00037748,30]
[392339761,1761365433041,-496.09808437,0.0003778,2]
[392339762,1761365433051,-277.0,0.00037781,2]
[392339763,1761365433061,-2480.7247209,0.00037784,2]
[392339764,1761365433071,-165.89979166,0.00037784,15]
[392339765,1761365433081,-855.99653874,0.00037784,10]
[392339766,1761365433091,-1000.0,0.00037784,2]
[392339767,1761365433101,-198.07352778,0.00037789,2]
[392339768,1761365433111,-1100.0,0.000378,13]
[392339769,1761365433121,-300.0,0.00037818,7]
[392339770,1761365433131,-277.0,0.00037837,7]
[392339771,1761365433141,-500.0,0.0003786,2]
[392339772,1761365433151,-5432.6357124,0.00037861,2]
[392339773,1761365433161,-666.5712752,0.00037861,2]
[392339774,1761365433171,-52386.6346892,0.00037874,3]
[392339775,1761365433181,-163.08,0.00037874,2]
[392339776,1761365433191,-41146.06044097,0.0003788,2]
[392339777,1761365433200,-151.0,0.00037883,30]
[392339778,1761365433209,-151.0,0.00037883,30]
[392339779,1761365433219,-159.557286,0.00037883,30]
[392339780,1761365433228,-151.0,0.00037883,30]
[392339781,1761365433237,-151.0,0.00037883,30]
[392339782,1761365433296,-151.0,0.00037883,30]
[392339783,1761365433306,-151.0,0.00037883,30]
[392339784,1761365433316,-151.0,0.00037883,30]
[392339785,1761365433326,-151.0,0.00037883,30]
[392339786,1761365433335,-151.0,0.00037883,30]
[392339787,1761365433349,-151.0,0.00037883,30]
[392339788,1761365433359,-2054.0,0.00037883,2]
[392339789,1761365433369,-3414.0,0.00037883,2]
[392339790,1761365433378,-572.0,0.00037883,2]
[392339791,1761365433387,-1312.0,0.00037883,2]
[392339792,1761365433396,-606.0,0.00037883,2]
[392339793,1761365433406,-1592.0,0.00037883,2]
[392339794,1761365433415,-1270.0,0.00037883,2]
[392339795,1761365433424,-818.0,0.00037883,2]
[392339796,1761365433434,-103647.8673799,0.00037884,2]
[392339797,1761365433443,-152.651188,0.00037884,30]
[392339798,1761365433453,-153.305901,0.00037884,30]
[392339799,1761365433462,-151.0,0.00037884,30]
[392339800,1761365433474,-151.0,0.00037884,30]
[392339801,1761365433485,-151.0,0.00037884,30]
[392339802,1761365433495,-151.0,0.00037884,30]
[392339803,1761365433504,-284.388628,0.00037884,30]
[392339804,1761365433515,-151.0,0.00037884,30]
[392339805,1761365433524,-151.0,0.00037884,30]
[392339806,1761365433533,-151.0,0.00037884,30]
[392339807,1761365433542,-151.0,0.00037884,30]
[392339808,1761365433552,-151.0,0.00037884,30]
[392339809,1761365433562,-151.0,0.00037884,30]
[392339810,1761365433572,-151.0,0.00037884,30]
[392339811,1761365433582,-151.0,0.00037884,30]
[392339812,1761365433592,-151.0,0.00037884,30]
[392339813,1761365433601,-151.0,0.00037884,30]
[392339814,1761365433611,-173.709448,0.00037884,30]
[392339815,1761365433620,-151.0,0.00037884,30]
[392339816,1761365433630,-151.0,0.00037884,30]
[392339817,1761365433639,-151.0,0.00037884,30]
[392339818,1761365433649,-153.076335,0.00037884,30]
[392339819,1761365433658,-152.758874,0.00037884,30]
[392339820,1761365433668,-151.0,0.00037884,30]
[392339821,1761365433677,-151.0,0.00037884,30]
[392339822,1761365433686,-151.0,0.00037884,30]
[392339823,1761365433695,-151.0,0.00037884,30]
[392339824,1761365433704,-151.0,0.00037884,30]
[392339825,1761365433714,-151.0,0.00037884,30]
[392339826,1761365433722,-557.75,0.00037884,14]
[392339827,1761365433732,-151.0,0.00037884,30]
[392339828,1761365433741,-151.0,0.00037884,30]
[392339829,1761365433750,-151.0,0.00037888,30]
[392339830,1761365433759,-151.0,0.00037888,30]
[392339831,1761365433768,-151.0,0.00037888,30]
[392339832,1761365433777,-151.0,0.00037888,30]
[392339833,1761365433786,-151.0,0.00037888,30]
[392339834,1761365433796,-277.203958,0.00037888,30]
[392339835,1761365433806,-151.0,0.00037888,30]
[392339836,1761365433815,-151.0,0.00037888,30]
[392339837,1761365433824,-151.0,0.00037888,30]
[392339838,1761365433833,-3488.0,0.00037888,2]
[392339839,1761365433842,-2324.779,0.00037888,2]
[392339840,1761365433852,-2200.0,0.000379,13]
[392339841,1761365433861,-1000.0,0.00037914,2]
[392339842,1761365433870,-7059.87958011,0.00037991,2]
[392339843,1761365433880,-13096.6586723,0.00037994,3]
[392339844,1761365433890,-11734.3184156,0.00038004,2]
[392339845,1761365433899,-433.80263646,0.00038023,2]
[392339846,1761365433909,-839.4025535,0.00038054,2]
[392339847,1761365433918,-1000.0,0.00038082,7]
[392339848,1761365433928,-200.0,0.00038108,10]
[392339849,1761365433937,-994.0,0.00038113,120]
[392339850,1761365433947,-500.0,0.00038135,2]
[392339851,1761365433956,-1618.0,0.00038135,5]
[392339852,1761365433965,-65483.2933616,0.00038136,3]
[392339853,1761365433975,-513.7967809,0.00038145,30]
[392339854,1761365433984,-500.0,0.00038145,30]
[392339855,1761365433993,-526.32411448,0.00038145,30]
[392339856,1761365434003,-504.91363858,0.00038145,30]
[392339857,1761365434012,-500.0,0.00038145,7]
[392339858,1761365434023,-527.28410164,0.00038145,30]
[392339859,1761365434032,-346.42,0.00038145,7]
[392339860,1761365434042,-500.0,0.00038145,2]
[392339861,1761365434052,-531.72406879,0.00038145,30]
[392339862,1761365434061,-4195.5666,0.00038146,2]
[392339863,1761365434070,-59526.16181547,0.00038146,2]
[392339864,1761365434084,-25678.46809173,0.00038146,2]
[392339865,1761365437452,-209.27460592,0.00037688,15]
[392339866,1761365437461,-554.17627918,0.00037688,15]
[392339867,1761365437474,-207.3265983,0.00037688,15]
[392339868,1761365437483,-151.0,0.00037883,30]
[392339869,1761365437493,-151.0,0.00037883,30]
[392339870,1761365437502,-151.0,0.00037888,30]
[392339871,1761365437512,-780.69435728,0.00038146,2]
[392339872,1761365437523,-2506.09710681,0.00038146,2]
[392339873,1761365437534,-2343.46774871,0.00038146,2]
[392339881,1761365439682,-214.648982,0.00037883,30]
[392339882,1761365439692,-151.0,0.00037888,30]
[392339883,1761365439702,-110.5410179,0.00038146,2]
[392339884,1761365439716,-3464.4454591,0.00038146,2]
[392339885,1761365440130,-1.6e-07,0.00038146,2]
[392339886,1761365440162,-1902.07,0.00038146,2]
[392339887,1761365440172,-1345.48188335,0.00038146,2]
[392339888,1761365440183,-2860.95238278,0.00038146,2]
[392339889,1761365440193,-776.42636932,0.00038146,2]
[392339891,1761365442506,-917.887,0.00034888,2]
[392339892,1761365442515,-903.0,0.00037888,2]
[392339893,1761365442525,-21824.50486739,0.00038146,2]
[392339894,1761365442534,-1000.0,0.00038146,2]
[392339895,1761365442543,-151.0,0.00038146,30]
[392339896,1761365442552,-151.0,0.00038146,30]
[392339897,1761365442562,-151.0,0.00038146,30]
[392339898,1761365442572,-151.0,0.00038146,15]
[392339899,1761365442582,-151.0,0.00038146,30]
[392339900,1761365442591,-156.519936,0.00038146,30]
[392339901,1761365442600,-151.0,0.00038146,30]
[392339902,1761365442609,-151.0,0.00038146,30]
[392339903,1761365442618,-151.795919,0.00038146,30]
[392339904,1761365442626,-151.0,0.00038146,30]
[392339905,1761365442636,-151.0,0.00038146,30]
[392339906,1761365442644,-151.0,0.00038146,30]
[392339907,1761365442653,-151.0,0.00038146,30]
[392339908,1761365442662,-151.0,0.00038146,30]
[392339909,1761365442671,-151.0,0.00038146,30]
[392339910,1761365442679,-152.196432,0.00038146,30]
[392339911,1761365442688,-151.0,0.00038146,30]
[392339912,1761365442697,-151.0,0.00038146,30]
[392339913,1761365442706,-151.0,0.00038146,30]
[392339914,1761365442716,-151.0,0.00038146,30]
[392339915,1761365442725,-151.0,0.00038146,30]
[392339916,1761365442734,-151.0,0.00038146,30]
[392339917,1761365442743,-151.0,0.00038146,30]
[392339918,1761365442751,-151.0,0.00038146,30]
[392339919,1761365442760,-151.0,0.00038146,30]
[392339920,1761365442769,-151.0,0.00038146,30]
[392339921,1761365442778,-242.774968,0.00038146,30]
[392339922,1761365442787,-151.0,0.00038146,30]
[392339923,1761365442796,-174.315392,0.00038146,30]
[392339924,1761365442805,-174.178245,0.00038146,30]
[392339925,1761365442815,-175.210851,0.00038146,30]
[392339926,1761365442825,-151.0,0.00038146,30]
[392339927,1761365442835,-151.0,0.00038146,30]
[392339928,1761365442845,-160.604827,0.00038146,30]
[392339929,1761365442854,-151.0,0.00038146,30]
[392339930,1761365442863,-160.813209,0.00038146,30]
[392339931,1761365442872,-109.32854236,0.00038146,30]
[392339932,1761365443002,-41.67145764,0.00038146,30]
[392339933,1761365443012,-151.0,0.00038146,30]
[392339934,1761365443021,-160.492097,0.00038146,30]
[392339935,1761365443030,-151.0,0.00038146,30]
[392339936,1761365443039,-151.0,0.00038146,30]
[392339937,1761365443048,-151.0,0.00038146,30]
[392339938,1761365443057,-151.0,0.00038146,30]
[392339939,1761365443067,-42.83644536,0.00038146,30]
[392339940,1761365443104,-108.16355464,0.00038146,30]
[392339941,1761365443113,-151.0,0.00038146,30]
[392339942,1761365443122,-299.66705162,0.00038146,2]
[392339943,1761365443131,-151.0,0.00038146,30]
[392339944,1761365443140,-151.0,0.00038146,30]
[392339945,1761365443149,-150.0,0.00038146,7]
[392339946,1761365443159,-13096.6586723,0.00038153,3]
[392339947,1761365443169,-557.75,0.00038158,14]
[392339948,1761365443178,-5000.0,0.00038163,2]
[392339949,1761365443187,-2480.72472089,0.00038171,2]
[392339950,1761365443196,-1000.0,0.00038188,2]
[392339951,1761365443205,-6176.3069409,0.0003821,2]
[392339952,1761365443215,-506.51421574,0.00038218,2]
[392339953,1761365443224,-1411.0714053,0.00038226,3]
[392339954,1761365443233,-1775.09,0.00038226,120]
[392339955,1761365443243,-39289.9760169,0.00038231,3]
[392339956,1761365443252,-4233.2142159,0.00038231,3]
[392339957,1761365443261,-13096.6586723,0.00038234,3]
[392339958,1761365443270,-1411.0714053,0.00038234,3]
[392339959,1761365443279,-39289.9760169,0.00038236,3]
[392339960,1761365443288,-4233.2142159,0.00038236,3]
[392339961,1761365443297,-276.507702,0.00038236,30]
[392339962,1761365443306,-151.0,0.00038236,30]
[392339963,1761365443315,-151.0,0.00038236,30]
[392339964,1761365443326,-151.0,0.00038236,30]
[392339965,1761365443335,-151.0,0.00038236,30]
[392339966,1761365443347,-1006.3214,0.0003824,2]
[392339967,1761365443360,-500.0,0.0003824,2]
[392339968,1761365443370,-7401.3939089,0.00038241,2]
[392339969,1761365443380,-55776.3431865,0.00038241,2]
[392339970,1761365443390,-151.0,0.00038241,30]
[392339971,1761365443401,-151.0,0.00038241,30]
[392339972,1761365443410,-151.0,0.00038241,30]
[392339973,1761365443420,-151.0,0.00038241,30]
[392339974,1761365443430,-151.0,0.00038241,30]
[392339975,1761365443441,-151.0,0.00038241,30]
[392339976,1761365443452,-151.0,0.00038241,30]
[392339977,1761365443462,-151.0,0.00038241,30]
[392339978,1761365443474,-151.0,0.00038241,30]
[392339979,1761365443485,-151.0,0.00038241,30]
[392339980,1761365443494,-151.0,0.00038241,30]
[392339981,1761365443504,-151.0,0.00038241,30]
[392339982,1761365443515,-151.0,0.00038241,30]
[392339983,1761365443524,-13096.6586723,0.00038244,3]
[392339984,1761365443533,-1411.0714053,0.00038244,3]
[392339985,1761365443542,-519.88630032,0.00038245,30]
[392339986,1761365443553,-502.88094176,0.00038245,30]
[392339987,1761365443562,-52386.6346892,0.00038246,3]
[392339988,1761365443571,-7055.3570265,0.00038246,3]
[392339989,1761365443580,-151.0,0.00038246,30]
[392339990,1761365443589,-151.0,0.00038246,30]
[392339991,1761365443601,-151.0,0.00038246,30]
[392339992,1761365443610,-151.0,0.00038246,30]
[392339993,1761365443619,-152.201517,0.00038246,30]
[392339994,1761365443630,-153.414668,0.00038246,30]
[392339995,1761365443642,-151.0,0.00038246,30]
[392339996,1761365443652,-151.0,0.00038246,30]
[392339997,1761365443662,-151.0,0.00038246,30]
[392339998,1761365443673,-151.0,0.00038246,30]
[392339999,1761365443684,-151.0,0.00038246,30]
[392340000,1761365443693,-151.0,0.00038246,30]
[392340001,1761365443702,-151.0,0.00038246,30]
[392340002,1761365443712,-159.691854,0.00038246,30]
[392340003,1761365443721,-160.93383,0.00038246,30]
[392340004,1761365443730,-151.0,0.00038246,30]
[392340005,1761365443739,-151.0,0.00038246,30]
[392340006,1761365443748,-151.0,0.00038246,15]
[392340007,1761365443757,-316.40552891,0.00038246,30]
[392340008,1761365443766,-152.853371,0.00038246,30]
[392340009,1761365443775,-152.803122,0.00038246,30]
[392340010,1761365443784,-151.0,0.00038246,30]
[392340011,1761365443793,-151.0,0.00038246,30]
[392340012,1761365443802,-151.0,0.00038246,30]
[392340013,1761365443811,-152.394478,0.00038246,30]
[392340014,1761365443820,-152.151388,0.00038246,30]
[392340015,1761365443830,-153.45997,0.00038246,30]
[392340016,1761365443839,-151.0,0.00038246,30]
[392340017,1761365443848,-151.0,0.00038246,30]
[392340018,1761365443857,-500.0,0.00038253,2]
[392340019,1761365443867,-154.809523,0.00038254,30]
[392340020,1761365443876,-151.0,0.00038254,30]
[392340021,1761365443885,-227.231836,0.00038254,30]
[392340022,1761365443895,-151.0,0.00038254,30]
[392340023,1761365443904,-151.0,0.00038254,30]
[392340024,1761365443913,-151.0,0.00038254,30]
[392340025,1761365443922,-216.835425,0.00038254,30]
[392340026,1761365443931,-151.0,0.00038254,30]
[392340027,1761365443940,-151.0,0.00038254,30]
[392340028,1761365443950,-237.327031,0.00038254,30]
[392340029,1761365443960,-151.0,0.00038254,30]
[392340030,1761365443969,-151.0,0.00038254,30]
[392340031,1761365443979,-13096.6586723,0.00038254,3]
[392340032,1761365443988,-2151.19486,0.00038255,2]
[392340033,1761365443998,-99434.27974091,0.00038256,30]
[392340034,1761365444010,-378.66,0.00038256,30]
[392340035,1761365444021,-588.62428665,0.00038256,30]
[392340036,1761365444033,-5122.12676512,0.00038256,30]
[392340037,1761365444061,-758.59630796,0.00038256,30]
[392340038,1761365444072,-3036.74701794,0.00038256,30]
[392340040,1761365603569,-242.96350348,0.00018502,2]
[392340041,1761366115609,1092.0,0.00036817,30]
[392340042,1761366118079,1092.0,0.00036817,30]
[392340043,1761366120811,1090.84734167,0.00036817,30]
[392340044,1761366123091,1092.0,0.00036817,30]
[392340045,1761366307766,3845.33,0.00015,2]
[392340046,1761366307787,4000.0,0.00015,2]
[392340047,1761366307807,4000.0,0.00015,2]
[392340048,1761366307828,4000.0,0.00015,2]
[392340049,1761366307849,4000.0,0.00015,2]
[392340050,1761366307869,4000.0,0.00015,2]
[392340051,1761366307890,4000.0,0.00015,2]
[392340052,1761366307910,1000.0,0.00015,2]
[392340053,1761366307930,1000.0,0.00015,2]
[392340054,1761366307951,1000.0,0.00015,2]
[392340055,1761366307972,600.0,0.00015,2]
[392340056,1761366308002,1000000.0,0.00015,2]
[392340057,1761366308028,2000000.0,0.00015,2]
[392340058,1761366308052,6211.38329718,0.00015,2]
[392340059,1761366308075,6211.38329718,0.00015,2]
[392340060,1761366308098,6211.38329718,0.00015,2]
[392340061,1761366308137,50000.0,0.00015,2]
[392340062,1761366308163,20000.0,0.00015,2]
[392340063,1761366308185,40000.0,0.00015,2]
[392340064,1761366310072,-266.03070622,0.00015,2]
[392340065,1761366312165,-154.40674501,0.00015,2]
[392340066,1761366314777,-369.74522748,0.00015,2]
[392340067,1761366318572,-299.48116592,0.00015,2]
[392340068,1761366320152,-167.8269976,0.00015,2]
[392340069,1761366340132,-151.41,0.00015,2]
[392340070,1761366341787,-255.53916602,0.00015,2]
[392340071,1761366343815,-656.64118428,0.00015,2]
[392340072,1761366347795,-172.04064478,0.00015,2]
[392340073,1761366349263,272.53,0.00013699,2]
[392340074,1761366349920,-151.02551,0.00015,2]
[392340075,1761366351969,-247.85475663,0.00015,2]
[392340076,1761366368487,-182.29466427,0.00015,2]
[392340077,1761366370797,-206.00759732,0.00015,2]
[392340078,1761366372834,-226.08409319,0.00015,2]
[392340079,1761366374336,-175.5527562,0.00015,2]
[392340080,1761366375877,-455.18897754,0.00015,2]
[392340081,1761366380369,-227.46606587,0.00015,2]
[392340082,1761366382331,-283.0,0.00015,2]
[392340083,1761366399535,-151.0,0.00014997,2]
[392340084,1761366399559,-3.77999984,0.00014999,2]
[392340085,1761366401353,165000.0,0.00036817,120]
[392340086,1761366404143,-365.1630615,0.00014999,2]
[392340087,1761366406884,-123.5669247,0.00014999,2]
[392340088,1761366406905,-122.68353286,0.00014999,2]
[392340089,1761366408440,-272.84789019,0.00014999,2]
[392340090,1761366416426,92065.92602045,0.000162,5]
[392340091,1761366416451,100000.0,0.000162,5]
[392340092,1761366416474,100000.0,0.000162,5]
[392340093,1761366416497,38677.84165823,0.000162,5]
[392340094,1761366422249,1500.0,0.000147,5]
[392340096,1761366424346,3000.0,0.000148,5]
[392340097,1761366426640,4500.0,0.000149,5]
[392340098,1761366428737,6000.0,0.000179,6]
[392340101,1761366442571,5938.85329718,0.00014923,2]
[392340102,1761366442593,1490.54917282,0.00014923,2]
[392340104,1761366463944,-300.0,0.00014998,2]
[392340105,1761366463965,-24.22957246,0.00014998,2]
[392340106,1761366468281,-275.77042754,0.00014998,2]
[392340107,1761366468302,-6.34821451,0.00014998,2]
[392340108,1761366469935,1432.47807645,0.00013,15]
[392340110,1761366472283,-143.65178549,0.00014998,2]
[392340111,1761366472304,-51.34821451,0.00014998,2]
[392340112,1761366475856,-282.99999984,0.00014998,2]
[392340113,1761366478062,-281.67319378,0.00014998,2]
[392340114,1761366489633,4720.83412436,0.0001439,2]
[392340115,1761366489653,607.33979678,0.0001439,2]
[392340116,1761366490428,-207.11704356,0.00014998,2]
[392340117,1761366492119,-302.0,0.00014998,2]
[392340118,1761366492625,255.51611901,0.000135,2]
[392340119,1761366493782,-74.86154831,0.00014998,2]
[392340120,1761366493803,-98.19774857,0.00014999,2]
[392340121,1761366496193,-96.80225143,0.00014999,2]
[392340122,1761366496214,-108.98433976,0.00014999,2]
[392340123,1761366496237,-34.80403851,0.00014999,2]
[392340124,1761366499601,-417.97984775,0.00014999,2]
[392340125,1761366502327,-47.21611374,0.00014999,2]
[392340126,1761366502354,-185.57792309,0.00014999,2]
[392340127,1761366504037,165.14074582,0.000149,2]
[392340128,1761366504071,-116.04921515,0.00014999,2]
[392340129,1761366504106,-156.13884964,0.00014999,2]
[392340131,1761366507849,-200.82616513,0.00014999,2]
[392340134,1761366516477,353.81365482,0.0001901,7]
[392340135,1761366519013,659.43257883,0.000149,2]
[392340136,1761366519866,-268.37775936,0.00014998,2]
[392340137,1761366519887,-38.54634876,0.00014998,2]
[392340138,1761366521512,-359.65525187,0.00014998,2]
[392340139,1761366539072,-101.79839937,0.00014998,2]
[392340140,1761366539096,-236.23731468,0.00014998,2]
[392340141,1761366540721,-250.51655997,0.00014998,2]
[392340142,1761366541807,189.90526894,0.00014898,2]
[392340143,1761366543063,-202.35359626,0.00014998,2]
[392340144,1761366548447,-156.58119535,0.00014998,2]
[392340145,1761366553790,409.01793766,0.000149,2]